bitfinex-derivatives/quotes_BNBF0:USTF0_20250112
["timestamp","ask_amount","ask_price","bid_price","bid_amount"]
[1736640003576,1.07168469,696.88,695.97,0.2873687]
[1736640003974,1.07020128,697.06,695.97,0.2873687]
[1736640003975,1.07168469,696.87,695.97,0.2873687]
[1736640004883,1.07168469,696.93,695.97,0.2873687]
[1736640005886,1.07168469,696.96,695.97,0.2873687]
[1736640007683,0.88889933,697.28,695.97,0.2873687]
[1736640007684,1.07168469,696.98,695.97,0.2873687]
[1736640008779,1.07168469,696.95,695.97,0.2873687]
[1736640009980,1.07168469,696.92,695.97,0.2873687]
[1736640010783,1.07168469,696.89,695.97,0.2873687]
[1736640011583,1.07168469,696.92,695.97,0.2873687]
[1736640012485,1.07168469,696.91,695.97,0.2873687]
[1736640013485,1.07168469,696.95,695.97,0.2873687]
[1736640014486,0.88889933,697.28,695.97,0.2873687]
[1736640014487,1.07168469,696.97,695.97,0.2873687]
[1736640015382,1.07168469,696.92,695.97,0.2873687]
[1736640016288,1.07168469,696.94,695.97,0.2873687]
[1736640017383,1.07168469,696.96,695.97,0.2873687]
[1736640018291,1.07168469,697.0,695.97,0.2873687]
[1736640018990,1.07168469,697.03,695.97,0.2873687]
[1736640021191,1.07168469,697.07,695.97,0.2873687]
[1736640022186,1.07168469,697.09,695.97,0.2873687]
[1736640023188,1.07168469,697.14,695.97,0.2873687]
[1736640024085,0.2868247,697.29,695.97,0.2873687]
[1736640024286,0.2637304,697.28,695.97,0.2873687]
[1736640024487,0.2868247,697.29,695.97,0.2873687]
[1736640024690,0.26373539,697.28,695.97,0.2873687]
[1736640025392,1.07168469,697.21,695.97,0.2873687]
[1736640025886,0.2868247,697.29,695.97,0.2873687]
[1736640026994,0.26372977,697.28,695.97,0.2873687]
[1736640027294,0.2868247,697.29,695.97,0.2873687]
[1736640051008,1.07168469,697.28,695.97,0.2873687]
[1736640051809,1.07168469,697.19,695.97,0.2873687]
[1736640052011,0.28686996,697.18,695.97,0.2873687]
[1736640053510,1.07168469,697.15,695.97,0.2873687]
[1736640054512,0.28686996,697.18,695.97,0.2873687]
[1736640054513,1.07168469,697.13,695.97,0.2873687]
[1736640054712,0.28689465,697.12,695.97,0.2873687]
[1736640055314,1.35857934,697.12,695.97,0.2873687]
[1736640056217,1.07168469,697.09,695.97,0.2873687]
[1736640057117,1.07168469,697.08,695.97,0.2873687]
[1736640057817,1.07168469,697.06,695.97,0.2873687]
[1736640058919,1.07168469,697.11,695.97,0.2873687]
[1736640059217,0.28690288,697.1,695.97,0.2873687]
[1736640059619,1.35858757,697.1,695.97,0.2873687]
[1736640060518,1.07168469,697.09,695.97,0.2873687]
[1736640061618,0.28690288,697.1,695.97,0.2873687]
[1736640062518,1.35858757,697.1,695.97,0.2873687]
[1736640062717,1.35858757,697.1,695.75,3.05922869]
[1736640063216,0.28690288,697.1,695.25,1.29082333]
[1736640063520,0.28690288,697.1,695.27,0.28765803]
[1736640071328,0.28690288,697.1,695.31,1.29082333]
[1736640071534,0.28690288,697.1,695.32,0.28763734]
[1736640073525,0.28690288,697.1,695.32,2.48082927]
[1736640073735,0.28690288,697.1,695.44,1.29082333]
[1736640074031,0.28690288,697.1,695.45,0.28758357]
[1736640074431,0.28690288,697.1,695.45,1.5784069]
[1736640075429,0.28690288,697.1,695.46,1.29082333]
[1736640076333,1.07168469,697.06,695.46,1.29082333]
[1736640076534,1.07168469,697.06,695.45,0.28758357]
[1736640077331,1.07168469,697.07,695.45,0.28758357]
[1736640078029,1.07168469,697.08,695.45,0.28758357]
[1736640079832,0.28690288,697.1,695.45,0.28758357]
[1736640079833,1.35858757,697.1,695.45,0.28758357]
[1736640080827,0.28690288,697.1,695.45,0.28758357]
[1736640081028,0.26385963,697.09,695.45,0.28758357]
[1736640081432,0.28690288,697.1,695.45,0.28758357]
[1736640081633,0.26386593,697.09,695.45,0.28758357]
[1736640081828,0.28690288,697.1,695.45,0.28758357]
[1736640082135,0.26386353,697.09,695.45,0.28758357]
[1736640082731,0.28691523,697.07,695.45,0.28758357]
[1736640097838,0.26387547,697.06,695.45,0.28758357]
[1736640098040,1.07168469,696.96,695.45,0.28758357]
[1736640098240,0.28696874,696.94,695.45,0.28758357]
[1736640113655,0.28696874,696.94,695.61,1.29082333]
[1736640114057,0.28696874,696.94,695.62,0.28751329]
[1736640136876,0.28696874,696.94,695.65,1.29082333]
[1736640137872,0.28696874,696.94,695.71,1.29082333]
[1736640138577,0.28696874,696.94,695.73,1.29082333]
[1736640139276,0.28696874,696.94,695.74,1.29082333]
[1736640140078,0.28696874,696.94,695.76,1.29082333]
[1736640141379,0.28696874,696.94,695.79,1.29082333]
[1736640141874,0.28696874,696.94,695.82,1.29082333]
[1736640142878,0.28696874,696.94,695.84,1.29082333]
[1736640143879,0.28696874,696.94,695.6,1.29082333]
[1736640145081,0.28696874,696.94,695.59,1.29082333]
[1736640146182,0.28696874,696.94,695.6,1.29082333]
[1736640147581,0.28696874,696.94,695.61,1.29082333]
[1736640148278,0.28696874,696.94,695.6,1.29082333]
[1736640149083,0.28696874,696.94,695.59,1.29082333]
[1736640150178,0.28696874,696.94,695.55,1.29082333]
[1736640151283,0.28696874,696.94,695.51,1.29082333]
[1736640152477,0.28696874,696.94,695.52,1.29082333]
[1736640153379,0.28696874,696.94,695.71,1.29082333]
[1736640155887,0.28696874,696.94,695.72,1.29082333]
[1736640157091,0.28696874,696.94,695.71,1.29082333]
[1736640158094,0.28696874,696.94,695.62,0.28751329]
[1736640173306,0.28696874,696.94,695.74,1.29082333]
[1736640174205,0.28696874,696.94,695.84,1.29082333]
[1736640175304,0.28696874,696.94,695.85,1.29082333]
[1736640176302,0.28696874,696.94,695.87,1.29082333]
[1736640178906,0.28696874,696.94,695.88,1.29082333]
[1736640181508,0.28696874,696.94,695.87,1.29082333]
[1736640182508,0.28696874,696.94,695.87,4.33575317]
[1736640182706,0.28696874,696.94,695.88,2.7271012]
[1736640183710,0.28696874,696.94,695.88,5.77203104]
[1736640183903,0.28696874,696.94,695.89,2.7271012]
[1736640188510,0.28696874,696.94,695.89,5.77203104]
[1736640188710,0.28696874,696.94,695.9,2.7271012]
[1736640190813,0.28696874,696.94,695.9,5.77203104]
[1736640191013,0.28696874,696.94,695.91,2.7271012]
[1736640192614,0.28696874,696.94,695.9,2.7271012]
[1736640197618,0.28696874,696.94,695.89,2.7271012]
[1736640198918,0.28696874,696.94,695.89,4.01792453]
[1736640199520,0.28696874,696.94,695.9,3.04492984]
[1736640199721,0.28696874,696.94,695.9,5.77203104]
[1736640199918,0.28696874,696.94,695.91,2.7271012]
[1736640202619,0.28696874,696.94,695.84,2.7271012]
[1736640203722,0.28696874,696.94,695.84,5.77203104]
[1736640203923,0.28696874,696.94,695.85,2.7271012]
[1736640205123,0.28696874,696.94,695.84,2.7271012]
[1736640207725,0.28696874,696.94,695.82,2.7271012]
[1736640207920,0.28696874,696.94,695.81,3.04492984]
[1736640208322,0.28696874,696.94,695.81,4.33575317]
[1736640208819,0.28696874,696.94,695.81,1.29082333]
[1736640209024,0.28696874,696.94,695.64,1.81478791]
[1736640209221,0.28696874,696.94,695.63,3.04492984]
[1736640209827,1.4986865,697.54,695.63,3.04492984]
[1736640210127,0.28673012,697.52,695.63,3.04492984]
[1736640210327,0.28673012,697.52,694.73,0.92218725]
[1736640210523,0.28673012,697.52,694.2,2.73697516]
[1736640210730,1.36127602,697.52,695.48,1.28802193]
[1736640211731,1.0745459,697.47,695.72,1.28802193]
[1736640212224,0.28675479,697.46,695.73,0.28746783]
[1736640212622,0.28675479,697.46,695.74,1.28802193]
[1736640212822,0.28675479,697.46,695.76,0.28745544]
[1736640233249,0.28675479,697.46,695.78,1.28802193]
[1736640233548,0.28675479,697.46,695.8,0.28743891]
[1736640234350,0.28675479,697.46,695.9,1.28802193]
[1736640234546,0.28675479,697.46,695.91,0.28739348]
[1736640235847,0.28675479,697.46,695.91,1.57541541]
[1736640238750,0.28675479,697.46,695.91,0.28739348]
[1736640252967,1.0745459,697.38,695.91,0.28739348]
[1736640253168,0.2867918,697.37,695.91,0.28739348]
[1736640253960,1.0745459,697.36,695.91,0.28739348]
[1736640254163,0.28680002,697.35,695.91,0.28739348]
[1736640255167,1.0745459,697.3,695.91,0.28739348]
[1736640255465,0.2868247,697.29,695.91,0.28739348]
[1736640274983,1.0745459,697.28,695.91,0.28739348]
[1736640275182,0.28683293,697.27,695.91,0.28739348]
[1736640276681,1.36137883,697.27,695.91,0.28739348]
[1736640277489,1.0745459,697.25,695.91,0.28739348]
[1736640277682,0.28684527,697.24,695.91,0.28739348]
[1736640278284,1.36139117,697.24,695.91,0.28739348]
[1736640278690,1.0745459,697.23,695.91,0.28739348]
[1736640279084,0.2868535,697.22,695.91,0.28739348]
[1736640281288,1.3613994,697.22,695.91,1.57541541]
[1736640282187,1.3613994,697.22,695.92,1.28802193]
[1736640283689,1.0745459,697.21,695.92,1.28802193]
[1736640283891,0.28686173,697.2,695.92,4.33295177]
[1736640284091,0.28686173,697.2,695.93,2.72724817]
[1736640284687,1.0745459,697.19,695.93,4.0152701]
[1736640284892,1.36141174,697.19,695.93,4.0152701]
[1736640285094,1.36141174,697.19,695.94,3.04492984]
[1736640285391,1.36141174,697.19,695.94,5.77217801]
[1736640285591,1.36141174,697.19,695.95,2.72724817]
[1736640285793,1.0745459,697.18,695.95,2.72724817]
[1736640286393,1.0745459,697.18,695.95,5.77217801]
[1736640286694,1.0745459,697.18,695.96,2.72724817]
[1736640286896,1.0745459,697.14,695.99,1.28802193]
[1736640288295,1.0745459,697.14,696.0,1.28802193]
[1736640289095,1.0745459,697.11,696.0,1.28802193]
[1736640289599,1.0745459,697.11,696.0,4.0152701]
[1736640289895,1.0745459,697.12,696.0,4.0152701]
[1736640290792,1.0745459,697.12,696.01,3.04492984]
[1736640290997,1.0745459,697.12,696.01,5.77217801]
[1736640291196,1.0745459,697.12,696.02,2.72724817]
[1736640294701,1.0745459,697.11,696.02,2.72724817]
[1736640296798,1.0745459,697.11,696.01,2.72724817]
[1736640298401,1.0745459,697.11,696.01,1.80618203]
[1736640298601,1.0745459,697.11,696.0,4.85111187]
[1736640299205,1.0745459,697.16,696.0,4.85111187]
[1736640299504,1.0745459,697.16,696.01,1.80618203]
[1736640299703,1.0745459,697.16,695.91,0.28739348]
[1736640300799,0.28686584,697.19,695.93,1.28802193]
[1736640300800,1.0745459,697.15,695.93,1.28802193]
[1736640301605,1.0745459,697.14,695.93,1.28802193]
[1736640302601,1.0745459,697.13,695.93,1.28802193]
[1736640302807,1.0745459,697.13,695.92,1.28802193]
[1736640303504,1.0745459,697.13,695.93,1.28802193]
[1736640304208,0.28686584,697.19,695.93,1.28802193]
[1736640304209,1.0745459,697.14,695.93,1.28802193]
[1736640305207,1.0745459,697.16,695.93,1.28802193]
[1736640306508,1.0745459,697.16,695.94,1.28802193]
[1736640307708,1.0745459,697.15,695.92,4.01958765]
[1736640308503,1.0745459,697.15,695.93,3.04492984]
[1736640308703,1.0745459,697.15,695.93,5.77649556]
[1736640308903,1.0745459,697.11,695.99,1.28802193]
[1736640310108,0.28686584,697.19,695.99,1.28802193]
[1736640310109,1.0745459,697.12,695.99,1.28802193]
[1736640311108,1.0745459,697.13,695.96,2.73156572]
[1736640311608,1.0745459,697.13,695.96,5.77649556]
[1736640311808,1.0745459,697.13,695.97,1.80618203]
[1736640312005,1.0745459,697.13,695.96,4.85111187]
[1736640313010,1.0745459,697.13,695.96,1.80618203]
[1736640313210,1.36141174,697.19,695.91,0.28739348]
[1736640313811,1.0745459,697.18,695.91,0.28739348]
[1736640314911,0.28687407,697.17,695.91,0.28739348]
[1736640329718,0.28687407,697.17,695.98,1.28802193]
[1736640330729,0.28687407,697.17,695.91,0.28739348]
[1736640391977,0.28687407,697.17,695.91,1.72839348]
[1736640415193,1.36141997,697.17,695.91,1.72839348]
[1736640415689,1.0745459,697.16,695.91,1.72839348]
[1736640415890,0.2868823,697.15,695.91,1.72839348]
[1736640416692,1.3614282,697.15,695.91,1.72839348]
[1736640417789,1.0745459,697.13,695.91,1.72839348]
[1736640417990,0.28689465,697.12,695.91,1.72839348]
[1736640419092,0.28689465,697.12,695.91,4.46593584]
[1736640419288,0.28689465,697.12,695.92,0.9257784]
[1736640419792,1.36144055,697.12,695.92,0.9257784]
[1736640420088,1.36144055,697.12,695.92,3.97868898]
[1736640420290,1.0745459,697.11,695.93,1.81176396]
[1736640420495,1.0745459,697.11,695.93,2.73754236]
[1736640421896,1.0745459,697.11,695.92,2.73754236]
[1736640422096,0.28689465,697.12,695.92,2.73754236]
[1736640422097,0.28689465,697.12,695.93,1.28802193]
[1736640422596,0.28689465,697.12,695.93,2.21380033]
[1736640422996,1.0745459,697.11,695.93,2.21380033]
[1736640423396,1.0745459,697.11,695.93,5.26671091]
[1736640423597,0.28690288,697.1,695.94,2.73754236]
[1736640424295,0.28690288,697.1,695.94,7.07847487]
[1736640424499,0.28690288,697.1,695.95,1.81176396]
[1736640424700,0.28690288,697.1,695.94,4.34093251]
[1736640425100,0.28690288,697.1,695.92,0.896]
[1736640426101,1.0745459,697.06,695.92,0.896]
[1736640426900,0.28692346,697.05,695.92,0.896]
[1736640439504,0.26382188,697.04,695.92,0.896]
[1736640439702,0.28693169,697.03,695.92,0.896]
[1736640439907,0.26382188,697.02,695.92,0.896]
[1736640440103,0.28693992,697.01,695.92,0.896]
[1736640440407,0.26383896,697.0,695.92,0.896]
[1736640440708,0.28693992,697.01,695.92,0.896]
[1736640444312,0.2638713,697.0,695.92,0.896]
[1736640444512,0.28695227,696.98,695.92,0.896]
[1736640444709,0.2638713,696.97,695.92,0.896]
[1736640444913,0.28696463,696.95,695.92,0.896]
[1736640445111,0.2638713,696.94,695.92,0.896]
[1736640445317,0.28696463,696.95,695.92,0.896]
[1736640445513,0.2638791,696.94,695.92,0.896]
[1736640448719,0.28697698,696.92,695.92,0.896]
[1736640543280,0.28692346,697.05,695.92,0.896]
[1736640543483,1.36146936,697.05,695.92,0.896]
[1736640544781,0.28692346,697.05,695.92,0.896]
[1736640545879,1.36146936,697.05,695.92,0.896]
[1736640546881,1.0745459,697.0,695.92,0.896]
[1736640547789,1.0745459,697.02,695.92,0.896]
[1736640548180,0.26386952,697.01,695.92,0.896]
[1736640548580,1.0745459,697.02,695.92,0.896]
[1736640548784,1.0745459,696.97,695.92,0.896]
[1736640549179,0.26387731,696.96,695.92,0.896]
[1736640549580,1.33842321,696.96,695.92,0.896]
[1736640549785,1.0745459,696.96,695.92,0.896]
[1736640549986,0.26388755,696.95,695.92,0.896]
[1736640550581,1.0745459,696.92,695.92,0.896]
[1736640550784,0.28698522,696.9,695.92,0.896]
[1736640571097,1.36153112,696.9,695.92,0.896]
[1736640573100,0.26388086,696.89,695.92,0.896]
[1736640573297,0.28699757,696.87,695.92,0.896]
[1736640574497,1.36154347,696.87,695.92,0.896]
[1736640575303,1.0745459,696.86,695.92,0.896]
[1736640575498,0.28700581,696.85,695.92,0.896]
[1736640576499,1.36155171,696.85,695.92,0.896]
[1736640577304,1.0745459,696.81,695.92,0.896]
[1736640577802,0.2870264,696.8,695.92,0.896]
[1736640579406,1.0745459,696.78,695.92,0.896]
[1736640579599,0.28703876,696.77,695.92,0.896]
[1736640580502,1.36158466,696.77,695.92,0.896]
[1736640581297,1.0745459,696.76,695.92,0.896]
[1736640581905,0.287047,696.75,695.92,0.896]
[1736640583907,1.3615929,696.75,695.92,0.896]
[1736640584808,0.287047,696.75,695.92,0.896]
[1736640595812,1.3615929,696.75,695.92,0.896]
[1736640597711,0.287047,696.75,695.92,0.896]
[1736640601314,1.0745459,696.74,695.92,0.896]
[1736640601710,0.28705524,696.73,695.92,0.896]
[1736640601907,1.0745459,696.72,695.92,0.896]
[1736640602210,0.28706348,696.71,695.92,0.896]
[1736640603616,1.0745459,696.69,695.92,0.896]
[1736640603916,0.28707584,696.68,695.92,0.896]
[1736640604315,1.0745459,696.65,695.92,0.896]
[1736640604510,0.28709232,696.64,695.92,0.896]
[1736640606016,0.27321561,696.64,695.92,0.896]
[1736640618324,0.26399208,696.63,695.92,0.896]
[1736640618526,0.27321561,696.64,695.92,0.896]
[1736640619327,0.26401063,696.63,695.92,0.896]
[1736640619832,1.0745459,696.61,695.92,0.896]
[1736640620033,0.26401063,696.6,695.92,0.896]
[1736640620430,1.0745459,696.55,695.92,0.896]
[1736640620628,0.26401063,696.54,695.92,0.896]
[1736640620832,1.0745459,696.55,695.92,0.896]
[1736640621131,0.26401938,696.54,695.92,0.896]
[1736640621333,1.33856528,696.54,695.92,0.896]
[1736640621833,1.0745459,696.54,695.92,0.896]
[1736640622836,1.0745459,696.62,695.92,0.896]
[1736640623036,0.26404983,696.61,695.92,0.896]
[1736640623635,0.28710881,696.6,695.92,0.896]
[1736640623835,0.26404983,696.59,695.92,0.896]
[1736640624136,0.28711705,696.58,695.92,0.896]
[1736640624432,0.26404983,696.57,695.92,0.896]
[1736640625230,0.28711705,696.58,695.92,0.896]
[1736640627438,1.49998384,696.57,695.92,0.896]
[1736640628832,0.2871253,696.56,695.92,0.896]
[1736640631739,0.26405249,696.55,695.92,0.896]
[1736640632534,0.28713354,696.54,695.92,0.896]
[1736640632737,0.26405249,696.53,695.92,0.896]
[1736640632939,0.28714179,696.52,695.92,0.896]
[1736640633140,0.26405406,696.51,695.92,0.896]
[1736640633339,0.28715003,696.5,695.92,0.896]
[1736640634539,0.26405479,696.49,695.92,0.896]
[1736640636739,0.28715828,696.48,695.92,0.896]
[1736640636939,0.26405479,696.47,695.92,0.896]
[1736640637139,0.28716652,696.46,695.92,0.896]
[1736640637340,0.26405479,696.45,695.92,0.896]
[1736640637642,0.28717477,696.44,695.92,0.896]
[1736640637842,0.26405479,696.43,695.92,0.896]
[1736640638242,0.28718302,696.42,695.92,0.896]
[1736640638843,0.26406122,696.41,695.92,0.896]
[1736640639041,0.28719126,696.4,695.92,0.896]
[1736640723404,1.07003228,696.8,695.92,0.896]
[1736640724412,1.07003228,696.87,695.92,0.896]
[1736640725011,0.28700169,696.86,695.92,0.896]
[1736640725413,1.07003228,696.83,695.92,0.896]
[1736640725712,0.28701816,696.82,695.92,0.896]
[1736640726316,1.07003228,696.79,695.92,0.896]
[1736640727210,1.35705044,696.82,695.92,0.896]
[1736640728012,0.28701816,696.82,695.92,0.896]
[1736640764046,1.35705044,696.82,695.92,0.896]
[1736640765041,0.28701816,696.82,695.92,0.896]
[1736640795561,1.35705044,696.82,695.92,0.896]
[1736640796460,0.28701816,696.82,695.92,0.896]
[1736640798162,1.35705044,696.82,695.92,0.896]
[1736640799158,1.07003228,696.81,695.92,0.896]
[1736640799563,0.2870264,696.8,695.92,0.896]
[1736640800064,1.35705868,696.8,695.92,0.896]
[1736640802068,0.2870264,696.8,695.92,0.896]
[1736640830089,1.07003228,696.78,695.92,0.896]
[1736640830288,0.28703876,696.77,695.92,0.896]
[1736640830884,1.35707104,696.77,695.92,0.896]
[1736640831891,1.07003228,696.76,695.92,0.896]
[1736640832091,0.287047,696.75,695.92,0.896]
[1736640851704,1.35707928,696.75,695.92,0.896]
[1736640855405,1.07003228,696.74,695.92,0.896]
[1736640855609,0.28705524,696.73,695.92,0.896]
[1736640908244,1.07003228,697.29,695.92,0.896]
[1736640908440,0.28682882,697.28,695.92,0.896]
[1736640917659,0.26374716,697.27,695.92,0.896]
[1736640918558,0.28684116,697.25,695.92,0.896]
[1736640920962,1.35687344,697.25,695.92,0.896]
[1736640922264,1.07003228,697.2,695.92,0.896]
[1736640922465,0.28686584,697.19,695.92,0.896]
[1736640923665,1.07003228,697.17,695.92,0.896]
[1736640923862,0.28687819,697.16,695.92,0.896]
[1736640924565,1.07003228,697.15,695.92,0.896]
[1736640924769,0.28688642,697.14,695.92,0.896]
[1736640927469,1.07003228,697.11,695.92,0.896]
[1736640928562,1.07003228,697.06,695.92,0.896]
[1736640929465,0.28692346,697.05,695.92,0.896]
[1736640929774,1.07003228,697.04,695.92,0.896]
[1736640929970,0.28693169,697.03,695.92,0.896]
[1736640937670,1.35696397,697.03,695.92,0.896]
[1736640938471,1.07003228,696.99,695.92,0.896]
[1736640938677,0.28695227,696.98,695.92,0.896]
[1736640942280,0.26384792,696.97,695.92,0.896]
[1736640944379,0.26385511,696.96,695.92,0.896]
[1736640944576,0.28695227,696.98,695.92,0.896]
[1736640944779,0.26385182,696.97,695.92,0.896]
[1736640945778,0.28696463,696.95,695.92,0.896]
[1736640947387,0.26385209,696.94,695.92,0.896]
[1736640947587,0.28697698,696.92,695.92,0.896]
[1736640947786,0.26385656,696.91,695.92,0.896]
[1736640948085,0.28698522,696.9,695.92,0.896]
[1736640966798,1.07003228,696.87,695.92,0.896]
[1736640966997,0.28700169,696.86,695.92,0.896]
[1736640967497,1.35703397,696.86,695.92,0.896]
[1736640968394,1.07003228,696.85,695.92,0.896]
[1736640968593,0.28700993,696.84,695.92,0.896]
[1736640969700,1.35704221,696.84,695.92,0.896]
[1736640970598,1.07003228,696.83,695.92,0.896]
[1736640970799,0.28701816,696.82,695.92,0.896]
[1736640971594,1.07003228,696.81,695.92,0.896]
[1736640971797,0.2870264,696.8,695.92,0.896]
[1736640972501,1.35705868,696.8,695.92,0.896]
[1736640975703,1.07003228,696.77,695.92,0.896]
[1736640975903,0.28704288,696.76,695.92,0.896]
[1736640976802,1.35707516,696.76,695.92,0.896]
[1736640978798,1.07003228,696.75,695.92,0.896]
[1736640979000,0.28705112,696.74,695.92,0.896]
[1736640980798,1.3570834,696.74,695.92,0.896]
[1736640983000,1.07003228,696.72,695.92,0.896]
[1736640983800,0.28706348,696.71,695.92,0.896]
[1736641052449,1.07003228,696.96,695.92,0.896]
[1736641052749,0.26387031,696.95,695.92,0.896]
[1736641053152,0.26387031,696.94,695.92,0.896]
[1736641053446,0.26387031,696.93,695.92,0.896]
[1736641053653,0.26387031,696.92,695.92,0.896]
[1736641053844,0.26387031,696.91,695.92,0.896]
[1736641054150,1.07003228,696.96,695.92,0.896]
[1736641054452,0.26385333,696.95,695.92,0.896]
[1736641055551,0.26385333,696.94,695.92,0.896]
[1736641055748,0.26385333,696.93,695.92,0.896]
[1736641055943,0.26385333,696.92,695.92,0.896]
[1736641056145,1.07003228,696.97,695.92,0.896]
[1736641056349,0.26384816,696.96,695.92,0.896]
[1736641056751,0.26384816,696.95,695.92,0.896]
[1736641056950,0.26384816,696.94,695.92,0.896]
[1736641057144,0.26384816,696.93,695.92,0.896]
[1736641057344,1.07003228,696.96,695.92,0.896]
[1736641057551,0.26384379,696.95,695.92,0.896]
[1736641058153,1.33387607,696.95,695.92,0.896]
[1736641058350,0.26384379,696.94,695.92,0.896]
[1736641059149,1.07003228,696.93,695.92,0.896]
[1736641059346,0.26384379,696.92,695.92,0.896]
[1736641059553,1.07003228,696.93,695.92,0.896]
[1736641059854,1.3338819,696.92,695.92,0.896]
[1736641060054,1.07003228,696.92,695.92,0.896]
[1736641060649,0.26385312,696.91,695.92,0.896]
[1736641060955,1.3338854,696.91,695.92,0.896]
[1736641061152,1.07003228,696.91,695.92,0.896]
[1736641061354,0.26385772,696.9,695.92,0.896]
[1736641061651,1.07003228,696.91,695.92,0.896]
[1736641061854,1.07003228,696.87,695.92,0.896]
[1736641062948,1.07003228,696.85,695.92,0.896]
[1736641063459,1.07003228,696.84,695.92,0.896]
[1736641064357,1.07003228,696.82,695.92,0.896]
[1736641065156,1.07003228,696.79,695.92,0.896]
[1736641066257,1.49930528,697.02,695.92,0.896]
[1736641066258,1.07003228,696.89,695.92,0.896]
[1736641066860,1.07003228,696.88,695.92,0.896]
[1736641067759,1.07003228,696.89,695.92,0.896]
[1736641069858,1.07003228,696.88,695.92,0.896]
[1736641073160,1.07003228,696.86,695.92,0.896]
[1736641075161,1.07003228,696.74,695.92,0.896]
[1736641077763,1.07003228,696.69,695.92,0.896]
[1736641078558,1.07003228,696.67,695.92,0.896]
[1736641079665,1.07003228,696.69,695.92,0.896]
[1736641080568,1.07003228,696.71,695.92,0.896]
[1736641081669,1.07003228,696.69,695.92,0.896]
[1736641082567,1.07003228,696.7,695.92,0.896]
[1736641083468,1.07003228,696.71,695.92,0.896]
[1736641084368,1.07003228,696.73,695.92,0.896]
[1736641084571,0.28705936,696.72,695.92,0.896]
[1736641086275,1.35709164,696.72,695.92,0.896]
[1736641088173,1.07003228,696.7,695.92,0.896]
[1736641088673,0.28707172,696.69,695.92,0.896]
[1736641108886,1.07003228,696.68,695.92,0.896]
[1736641109089,0.28707996,696.67,695.92,0.896]
[1736641109991,1.35711224,696.67,695.92,0.896]
[1736641111491,1.07003228,696.66,695.92,0.896]
[1736641111685,0.2870882,696.65,695.92,0.896]
[1736641117287,1.07003228,696.64,695.92,0.896]
[1736641118093,0.2870882,696.65,695.92,0.896]
[1736641122996,1.35712048,696.65,695.92,0.896]
[1736641123998,1.07003228,696.63,695.92,0.896]
[1736641124599,0.28710057,696.62,695.92,0.896]
[1736641128205,1.07003228,696.61,695.92,0.896]
[1736641128499,0.28710881,696.6,695.92,0.896]
[1736641131006,1.35714109,696.6,695.92,0.896]
[1736641133807,1.07003228,696.59,695.92,0.896]
[1736641134207,0.28711705,696.58,695.92,0.896]
[1736641134802,1.35714933,696.58,695.92,0.896]
[1736641135609,0.28711705,696.58,695.92,0.896]
[1736641136407,1.35714933,696.58,695.92,0.896]
[1736641138305,0.28711705,696.58,695.92,0.896]
[1736641139411,1.35714933,696.58,695.92,0.896]
[1736641141005,1.07003228,696.57,695.92,0.896]
[1736641141204,0.2871253,696.56,695.92,0.896]
[1736641143715,0.26403194,696.55,695.92,0.896]
[1736641144015,0.2871253,696.56,695.92,0.896]
[1736641144716,1.07003228,696.52,695.92,0.896]
[1736641145715,0.28714591,696.51,695.92,0.896]
[1736641159225,0.26404134,696.5,695.92,0.896]
[1736641159428,0.28715415,696.49,695.92,0.896]
[1736641159626,0.26404134,696.48,695.92,0.896]
[1736641159819,0.2871624,696.47,695.92,0.896]
[1736641160024,0.26404935,696.46,695.92,0.896]
[1736641160229,0.28717065,696.45,695.92,0.896]
[1736641162029,0.26405264,696.44,695.92,0.896]
[1736641162426,0.28717889,696.43,695.92,0.896]
[1736641162831,0.26405246,696.42,695.92,0.896]
[1736641163425,0.28718714,696.41,695.92,0.896]
[1736641176132,0.26406801,696.4,695.92,0.896]
[1736641176338,1.07003228,696.37,695.92,0.896]
[1736641176538,0.28720776,696.36,695.92,0.896]
[1736641177338,1.07003228,696.3,695.92,0.896]
[1736641177540,0.28723663,696.29,695.92,0.896]
[1736641177939,1.07003228,696.28,695.92,0.896]
[1736641178138,0.28724489,696.27,695.92,0.896]
[1736641178836,1.07003228,696.26,695.92,0.896]
[1736641179039,0.28725314,696.25,695.92,0.896]
[1736641183537,1.35728542,696.25,695.92,0.896]